bitfinex/quotes_SOLUSD_20250209
["timestamp","ask_amount","ask_price","bid_price","bid_amount"]
[1739060404892,4.5148,199.35,199.3,12.08350176]
[1739060405076,12.08350176,199.41,199.34,12.08350176]
[1739060405282,20.21350176,199.42,199.34,12.08350176]
[1739060405997,20.0,199.38,199.34,12.08350176]
[1739060406385,20.0,199.38,199.35,12.08350176]
[1739060407599,20.0,199.38,199.34,12.08350176]
[1739060408279,12.08350176,199.45,199.37,12.08350176]
[1739060408490,12.08350176,199.45,199.38,12.08350176]
[1739060408890,0.12549,199.41,199.38,12.08350176]
[1739060409283,13.53733853,199.44,199.38,12.08350176]
[1739060409474,4.5122,199.46,199.4,12.08350176]
[1739060409807,4.5122,199.46,199.38,135.8]
[1739060409808,12.08350176,199.48,199.41,12.08350176]
[1739060409977,12.14650176,199.5,199.42,12.08350176]
[1739060410177,4.5115,199.49,199.42,12.08350176]
[1739060411100,20.0,199.47,199.43,12.08350176]
[1739060412118,20.0,199.47,199.42,12.08350176]
[1739060413213,0.12549,199.48,199.43,12.08350176]
[1739060413387,12.14650176,199.5,199.45,12.08350176]
[1739060413388,0.063,199.5,199.45,12.08350176]
[1739060413588,0.063,199.5,199.46,12.08350176]
[1739060414003,0.063,199.5,199.47,12.08350176]
[1739060414188,0.063,199.5,199.48,12.08350176]
[1739060415886,0.063,199.5,199.48,140.813]
[1739060416091,0.063,199.5,199.49,12.08350176]
[1739060417402,0.063,199.5,199.49,147.88350176]
[1739060418517,0.063,199.5,199.49,135.8]
[1739060419518,4.5115,199.49,199.45,218.8]
[1739060419809,16.59500176,199.49,199.45,218.8]
[1739060420211,16.59500176,199.49,199.45,218.78]
[1739060420808,16.59500176,199.49,199.38,3.74]
[1739060420809,0.25098,199.45,199.41,135.8]
[1739060421118,12.20899176,199.43,199.38,218.78]
[1739060421416,12.08350176,199.42,199.36,135.8]
[1739060421627,16.59660176,199.42,199.36,135.8]
[1739060421794,25.74633029,199.41,199.36,135.8]
[1739060421993,12.20899176,199.39,199.34,135.8]
[1739060422216,12.08350176,199.38,199.34,135.8]
[1739060422613,0.12549,199.38,199.34,135.8]
[1739060423690,12.08350176,199.39,199.34,135.8]
[1739060424015,36.59680176,199.41,199.34,152.90000176]
[1739060424219,0.12549,199.4,199.36,12.08350176]
[1739060424423,13.53733853,199.42,199.36,12.08350176]
[1739060425193,0.12549,199.41,199.36,12.08350176]
[1739060427320,20.0,199.41,199.37,12.08350176]
[1739060427819,20.0,199.41,199.37,147.88350176]
[1739060428720,20.0,199.41,199.37,135.8]
[1739060429720,20.0,199.41,199.39,12.08350176]
[1739060430110,0.12549,199.43,199.39,12.08350176]
[1739060431812,0.12549,199.43,199.38,12.08350176]
[1739060433523,0.12549,199.43,199.38,147.88350176]
[1739060434824,20.25098,199.4,199.37,12.08350176]
[1739060435021,0.12549,199.38,199.32,230.86350176]
[1739060435225,12.20899176,199.38,199.32,218.78]
[1739060435823,20.0,199.36,199.32,218.78]
[1739060438821,20.0,199.36,199.32,230.86350176]
[1739060439234,20.0,199.36,199.32,230.89350176]
[1739060439623,20.0,199.36,199.32,12.11350176]
[1739060441351,0.12549,199.35,199.32,0.03]
[1739060441920,13.66282853,199.35,199.32,0.03]
[1739060444052,18.17752853,199.35,199.32,0.03]
[1739060445465,33.53733853,199.33,199.32,0.03]
[1739060446043,38.05243853,199.33,199.32,0.03]
[1739060446247,38.17792853,199.33,199.32,0.03]
[1739060446546,50.26143029,199.33,199.32,0.03]
[1739060447645,38.17792853,199.33,199.32,0.03]
[1739060448762,30.25098,199.3,199.29,0.03]
[1739060448944,13.66282853,199.29,199.22,12.08350176]
[1739060449459,13.66282853,199.29,199.19,140.8202]
[1739060449460,20.12549,199.29,199.24,12.08350176]
[1739060449639,20.0,199.29,199.24,12.08350176]
[1739060449959,13.66282853,199.28,199.24,12.08350176]
[1739060450752,8.0177,199.33,199.27,12.08350176]
[1739060450957,20.0,199.3,199.29,12.08350176]
[1739060454158,20.0,199.3,199.28,12.08350176]
[1739060454863,0.12549,199.29,199.25,12.08350176]
[1739060455330,0.12549,199.29,199.24,230.86350176]
[1739060455529,38.17882853,199.29,199.23,12.08350176]
[1739060456364,50.26233029,199.29,199.22,147.91350176]
[1739060457271,0.12549,199.27,199.22,135.83]
[1739060458851,0.12549,199.25,199.22,147.91350176]
[1739060459045,0.12549,199.25,199.22,12.11350176]
[1739060459265,32.08350176,199.29,199.24,12.08350176]
[1739060459266,20.0,199.29,199.24,12.08350176]
[1739060459442,13.66282853,199.28,199.25,12.08350176]
[1739060459641,13.66282853,199.28,199.24,12.08350176]
[1739060459838,20.0,199.29,199.25,12.08350176]
[1739060460070,4.5155,199.32,199.26,12.08350176]
[1739060460255,13.66282853,199.31,199.26,12.08350176]
[1739060460566,13.66282853,199.31,199.25,12.08350176]
[1739060461150,18.17852853,199.31,199.25,12.08350176]
[1739060461339,0.12549,199.28,199.23,12.08350176]
[1739060462366,20.0,199.28,199.24,12.08350176]
[1739060463269,20.0,199.27,199.24,12.08350176]
[1739060463656,20.0,199.24,199.23,135.8]
[1739060463856,0.12549,199.23,199.22,0.03]
[1739060465871,20.0,199.24,199.22,0.03]
[1739060466047,8.0801,199.25,199.22,12.11350176]
[1739060466249,20.0,199.27,199.24,12.08350176]
[1739060467473,20.0,199.27,199.25,12.08350176]
[1739060467762,0.12549,199.25,199.22,0.03]
[1739060468540,12.08350176,199.29,199.22,135.83]
[1739060468782,8.0801,199.3,199.25,12.08350176]
[1739060469268,8.0801,199.3,199.26,12.08350176]
[1739060469765,6.4496,199.3,199.26,12.08350176]
[1739060470067,6.4496,199.3,199.27,12.08350176]
[1739060470284,20.0,199.32,199.28,12.08350176]
[1739060470440,20.0,199.3,199.28,12.08350176]
[1739060471261,20.0,199.3,199.27,12.08350176]
[1739060471468,20.0,199.3,199.27,17.10170176]
[1739060471644,20.0,199.3,199.28,12.08350176]
[1739060471848,13.66282853,199.33,199.28,12.08350176]
[1739060472061,0.12549,199.32,199.29,12.08350176]
[1739060472881,1.5425,199.35,199.3,12.08350176]
[1739060473260,20.0,199.33,199.3,12.08350176]
[1739060473577,20.0,199.33,199.29,147.88350176]
[1739060474982,0.12549,199.34,199.29,147.88350176]
[1739060477084,6.2916,199.36,199.31,12.08350176]
[1739060477486,13.66282853,199.37,199.31,12.08350176]
[1739060477874,13.66282853,199.37,199.32,12.08350176]
[1739060478172,1.5425,199.39,199.35,12.08350176]
[1739060478477,6.2916,199.41,199.36,12.08350176]
[1739060479075,0.063,199.45,199.4,12.08350176]
[1739060479262,0.063,199.45,199.44,12.08350176]
[1739060480170,0.063,199.45,199.44,17.09750176]
[1739060480781,0.063,199.45,199.44,152.89750176]
[1739060483286,0.063,199.45,199.44,147.88350176]
[1739060485501,0.063,199.45,199.44,152.89750176]
[1739060486999,0.063,199.45,199.44,235.87750176]
[1739060488183,0.063,199.45,199.44,236.84750176]
[1739060488382,0.063,199.45,199.44,235.87750176]
[1739060489575,0.063,199.45,199.44,236.84750176]
[1739060490692,0.063,199.5,199.45,1.97]
[1739060490896,0.063,199.5,199.49,12.08350176]
[1739060491074,0.063,199.5,199.49,147.88350176]
[1739060491795,0.063,199.5,199.49,152.89620176]
[1739060493400,0.063,199.5,199.49,235.87620176]
[1739060493776,0.063,199.5,199.49,247.95970352]
[1739060493993,0.063,199.5,199.49,235.87620176]
[1739060494788,0.063,199.5,199.49,248.95970352]
[1739060495278,0.063,199.5,199.49,236.87620176]
[1739060495897,0.063,199.55,199.51,1.0]
[1739060496082,0.063,199.55,199.53,12.08350176]
[1739060496282,0.063,199.55,199.53,231.86350176]
[1739060496490,0.063,199.55,199.54,1.0]
[1739060496783,0.063,199.63,199.57,1.0]
[1739060497088,0.063,199.63,199.62,12.08350176]
[1739060497281,0.063,199.63,199.58,0.75124684]
[1739060497282,0.063,199.63,199.58,147.88350176]
[1739060497480,11.64650176,199.63,199.58,135.8]
[1739060497698,12.33448176,199.64,199.58,135.8]
[1739060498090,4.5083,199.63,199.58,135.8]
[1739060498803,16.84258176,199.64,199.58,135.8]
[1739060501604,13.41184853,199.63,199.58,135.8]
[1739060501901,12.20899176,199.59,199.52,147.88350176]
[1739060502092,12.20899176,199.59,199.52,230.86350176]
[1739060502494,12.20899176,199.59,199.52,218.78]
[1739060502688,12.20899176,199.59,199.52,223.7919]
[1739060503010,0.12549,199.59,199.53,12.08350176]
[1739060503308,0.12549,199.59,199.53,230.86350176]
[1739060504188,7.7791,199.6,199.56,12.08350176]
[1739060504387,7.7791,199.6,199.56,147.88350176]
[1739060505092,4.5711,199.64,199.58,12.08350176]
[1739060505298,4.5711,199.64,199.59,12.08350176]
[1739060506312,0.12549,199.63,199.59,12.08350176]
[1739060508583,0.12549,199.63,199.58,147.88350176]
[1739060510902,4.63389,199.63,199.58,147.88350176]
[1739060511103,0.12549,199.61,199.58,135.8]
[1739060511299,12.20899176,199.61,199.58,135.8]
[1739060512515,16.71789176,199.61,199.58,135.8]
[1739060513518,12.14650176,199.64,199.58,135.8]
[1739060513712,20.0,199.62,199.58,152.89390176]
[1739060513915,4.5711,199.64,199.59,12.08350176]
[1739060514103,4.5711,199.64,199.6,12.08350176]
[1739060514104,0.063,199.64,199.6,12.08350176]
[1739060514408,0.063,199.64,199.61,12.08350176]
[1739060514616,0.063,199.64,199.62,12.08350176]
[1739060515217,0.063,199.64,199.6,235.87350176]
[1739060515913,0.18849,199.64,199.6,218.78]
[1739060516092,25.80933029,199.64,199.6,218.78]
[1739060516287,0.12549,199.62,199.6,218.78]
[1739060516616,30.12944029,199.62,199.58,0.03]
[1739060517592,18.04593853,199.62,199.58,0.03]
[1739060519623,0.12549,199.6,199.58,0.03]
[1739060519805,12.20899176,199.6,199.58,0.03]
[1739060521324,0.12549,199.6,199.58,0.03]
[1739060523912,12.08350176,199.59,199.58,0.03]
[1739060524219,12.20899176,199.59,199.58,0.03]
[1739060525123,33.77453029,199.59,199.58,0.03]
[1739060525299,63.77453029,199.59,199.58,0.03]
[1739060525498,12.33448176,199.55,199.49,135.8]
[1739060525708,8.0282,199.59,199.54,12.08350176]
[1739060525900,0.12549,199.58,199.54,147.88350176]
[1739060527128,0.12549,199.58,199.54,135.8]
[1739060527901,0.12549,199.58,199.54,140.8114]
[1739060528208,8.0282,199.59,199.54,147.88350176]
[1739060528899,8.0282,199.59,199.55,12.83501164]
[1739060529104,0.063,199.63,199.55,12.83501164]
[1739060529324,0.063,199.63,199.55,148.63501164]
[1739060529526,0.063,199.63,199.57,12.08350176]
[1739060529837,0.063,199.63,199.6,12.08350176]
[1739060529996,0.063,199.63,199.6,147.88350176]
[1739060530195,0.063,199.63,199.61,12.08350176]
[1739060530424,0.063,199.63,199.61,12.83476247]
[1739060530803,0.063,199.63,199.62,12.08350176]
[1739060531331,0.063,199.63,199.62,12.83458791]
[1739060532329,0.063,199.63,199.62,17.84408791]
[1739060533910,0.063,199.63,199.62,237.62408791]
[1739060534116,0.063,199.63,199.62,236.87300176]
[1739060534327,0.063,199.64,199.63,1.0]
[1739060534528,0.063,199.64,199.63,18.84367685]
[1739060535035,0.063,199.64,199.63,17.84367685]
[1739060535234,0.063,199.64,199.63,17.09270176]
[1739060535608,0.063,199.64,199.63,17.84389503]
[1739060537025,0.063,199.64,199.63,18.84389503]
[1739060537224,0.063,199.64,199.63,237.62389503]
[1739060537415,0.063,199.64,199.63,237.84270176]
[1739060542635,0.063,199.64,199.63,236.84270176]
[1739060543126,0.063,199.64,199.63,235.87270176]
[1739060543825,0.063,199.65,199.64,2.09549]
[1739060544024,0.063,199.7,199.67,1.0]
[1739060544336,0.063,199.7,199.69,12.08350176]
[1739060545332,0.063,199.7,199.69,17.09120176]
[1739060549441,0.063,199.7,199.69,235.87120176]
[1739060556744,0.063,199.7,199.69,231.49468094]
[1739060557628,0.03,199.79,199.72,21.0]
[1739060557823,0.03,199.79,199.74,8.70698094]
[1739060558747,0.03,199.79,199.74,227.48698094]
[1739060558948,0.0001,199.75,199.74,228.45698094]
[1739060559748,0.0001,199.75,199.74,233.46348094]
[1739060560647,0.0001,199.75,199.74,237.78751094]
[1739060566551,0.0001,199.75,199.74,236.81751094]
[1739060566748,0.0001,199.75,199.74,237.78751094]
[1739060567052,0.0001,199.75,199.74,230.81101094]
[1739060567253,0.0001,199.75,199.74,218.78]
[1739060567655,12.03111094,199.75,199.74,82.98]
[1739060567842,12.03111094,199.75,199.73,135.8]
[1739060568062,0.0001,199.75,199.73,135.8]
[1739060568648,4.5057,199.75,199.73,135.8]
[1739060568955,12.03101094,199.74,199.73,135.8]
[1739060570656,12.03111094,199.75,199.73,135.8]
[1739060573456,12.03111094,199.75,199.69,5.0076]
[1739060578849,0.0001,199.75,199.73,12.03101094]
[1739060579267,0.0001,199.75,199.74,12.03101094]
[1739060580164,0.0001,199.75,199.74,17.03751094]
[1739060580660,0.0001,199.75,199.71,5.0072]
[1739060580864,0.0001,199.75,199.69,235.81871094]
[1739060581244,0.0001,199.75,199.69,223.7877]
[1739060581245,12.03111094,199.75,199.69,223.7877]
[1739060582569,0.0001,199.75,199.69,223.7877]
[1739060582773,0.0001,199.75,199.69,235.81871094]
[1739060583672,12.03101094,199.74,199.69,218.78]
[1739060583882,12.03101094,199.71,199.69,218.78]
[1739060584468,12.03101094,199.73,199.69,218.78]
[1739060585771,12.03101094,199.73,199.69,218.81]
[1739060589065,13.64061094,199.74,199.69,218.81]
[1739060589277,33.64061094,199.74,199.69,218.81]
[1739060590373,33.64061094,199.74,199.69,223.8176]
[1739060590551,33.64061094,199.74,199.69,218.81]
[1739060592775,21.6096,199.74,199.69,218.81]
[1739060592979,33.64061094,199.74,199.69,218.81]
[1739060593557,12.03101094,199.73,199.69,218.81]
[1739060593971,18.14651094,199.74,199.69,218.81]
[1739060594169,1.6096,199.74,199.69,218.81]
[1739060596083,13.82561175,199.74,199.69,218.81]
[1739060597591,9.31971175,199.74,199.69,218.81]
[1739060599260,13.82561175,199.74,199.69,218.81]
[1739060599460,7.71011175,199.73,199.69,218.81]
[1739060601387,0.25098,199.72,199.69,83.01]
[1739060601583,27.63464028,199.7,199.69,0.03]
[1739060602083,58.47508728,199.7,199.69,0.03]
[1739060602678,64.61898728,199.7,199.69,0.03]
[1739060603071,33.77854028,199.7,199.69,0.03]
[1739060605182,0.12549,199.66,199.65,83.01]
[1739060605384,7.83560175,199.66,199.65,0.03]
[1739060605989,21.37294028,199.66,199.65,0.03]
[1739060607189,25.88054028,199.66,199.65,0.03]
[1739060634215,0.12549,199.6,199.58,0.03]
[1739060634386,27.83560175,199.59,199.58,0.03]
[1739060634718,41.37294028,199.59,199.58,0.03]
[1739060634893,45.88214028,199.59,199.58,0.03]
[1739060635212,25.88214028,199.59,199.58,0.03]
[1739060635702,55.88214028,199.59,199.58,0.03]
[1739060639913,0.12549,199.59,199.58,0.03]
[1739060640111,9.24041175,199.64,199.58,0.03]
[1739060640491,13.82971175,199.66,199.58,226.52011175]
[1739060640698,7.71011175,199.66,199.59,7.71011175]
[1739060641214,21.37294028,199.65,199.58,226.52011175]
[1739060641405,0.12549,199.63,199.58,218.81]
[1739060642414,7.83560175,199.63,199.58,218.81]
[1739060644423,7.83560175,199.63,199.59,0.03]
[1739060644627,7.71011175,199.6,199.59,0.03]
[1739060644809,7.83560175,199.6,199.59,0.03]
[1739060647921,7.71011175,199.64,199.59,0.03]
[1739060648156,7.71011175,199.64,199.59,218.81]
[1739060649327,7.71011175,199.62,199.59,218.81]
[1739060649544,7.71011175,199.61,199.59,218.81]
[1739060650810,27.71011175,199.66,199.59,226.52011175]
[1739060651012,27.71011175,199.66,199.59,231.53031175]
[1739060651220,7.71011175,199.67,199.6,8.46136973]
[1739060651520,20.12549,199.67,199.6,227.24136973]
[1739060651716,20.12549,199.67,199.6,226.49011175]
[1739060651913,7.77311175,199.69,199.62,7.71011175]
[1739060652912,7.77311175,199.69,199.63,5.0092]
[1739060653728,0.063,199.69,199.64,8.46130229]
[1739060654036,0.063,199.69,199.66,7.71011175]
[1739060654205,0.063,199.69,199.66,227.24114632]
[1739060654409,0.063,199.69,199.67,8.46111575]
[1739060655129,0.063,199.69,199.68,5.008]
[1739060655321,0.063,199.69,199.68,148.51811175]
[1739060655822,0.063,199.69,199.68,140.808]
[1739060660239,0.063,199.69,199.68,135.8]
[1739060660645,0.063,199.69,199.68,140.808]
[1739060665348,0.063,199.69,199.68,135.8]
[1739060665657,7.77311175,199.69,199.68,135.8]
[1739060666729,0.063,199.69,199.68,135.8]
[1739060667556,0.063,199.69,199.68,140.808]
[1739060668154,0.063,199.69,199.68,148.51811175]
[1739060668346,0.063,199.69,199.68,231.49811175]
[1739060672458,0.063,199.69,199.68,223.788]
[1739060672835,0.063,199.69,199.68,218.78]
[1739060676754,0.063,199.69,199.68,223.788]
[1739060677063,0.063,199.69,199.68,231.49811175]
[1739060677264,0.063,199.69,199.68,218.78]
[1739060683868,9.35871175,199.69,199.68,82.98]
[1739060684075,1.77409,199.69,199.68,82.98]
[1739060684375,0.12549,199.66,199.63,83.01]
[1739060684538,7.83560175,199.64,199.63,83.01]
[1739060684735,7.83560175,199.64,199.63,0.03]
[1739060684736,21.37294028,199.64,199.63,0.03]
[1739060685238,27.82474028,199.64,199.63,0.03]
[1739060686173,32.33284028,199.64,199.63,0.03]
[1739060688567,32.33284028,199.64,199.59,0.03]
[1739060688568,20.25098,199.6,199.59,0.03]
[1739060688767,41.37294028,199.6,199.59,0.03]
[1739060689867,45.88194028,199.6,199.59,0.03]
[1739060714684,12.21841175,199.63,199.59,0.03]
[1739060714889,7.83560175,199.62,199.59,0.03]
[1739060715708,7.71011175,199.61,199.59,0.03]
[1739060715982,30.0,199.59,199.53,83.01]
[1739060716180,21.37294028,199.54,199.53,0.03]
[1739060717561,25.88324028,199.54,199.53,0.03]
[1739060723989,7.71011175,199.55,199.53,0.03]
[1739060724285,7.71011175,199.58,199.53,0.03]
[1739060724471,7.71011175,199.59,199.53,0.03]
[1739060725393,7.71011175,199.6,199.53,7.74011175]
[1739060725570,7.71011175,199.61,199.54,7.71011175]
[1739060726590,13.66282853,199.6,199.54,12.72151175]
[1739060726888,13.72582853,199.6,199.54,12.72151175]
[1739060728086,13.60033853,199.6,199.54,12.72151175]
[1739060728390,21.31045028,199.6,199.54,12.72151175]
[1739060728567,21.31045028,199.6,199.54,5.0114]
[1739060728875,13.60033853,199.6,199.55,7.71011175]
[1739060729583,0.063,199.6,199.55,226.49011175]
[1739060731169,0.063,199.6,199.55,231.50111175]
[1739060731587,0.063,199.6,199.55,218.78]
[1739060731786,7.71011175,199.57,199.55,218.78]
[1739060733393,7.71011175,199.58,199.55,218.78]
[1739060733691,7.71011175,199.58,199.55,82.98]
[1739060734597,7.71011175,199.57,199.55,82.98]
[1739060735375,21.37294028,199.59,199.55,82.98]
[1739060735591,13.41184853,199.58,199.55,82.98]
[1739060735993,21.12196028,199.58,199.55,82.98]
[1739060736286,7.71011175,199.56,199.55,82.98]
[1739060737083,7.71011175,199.56,199.53,135.83]
[1739060737084,0.12549,199.55,199.53,135.83]
[1739060737295,7.71011175,199.54,199.53,135.83]
[1739060737597,7.71011175,199.54,199.53,0.03]
[1739060739576,25.75775028,199.54,199.53,0.03]
[1739060739785,25.88324028,199.54,199.53,0.03]
[1739060744775,7.71011175,199.55,199.53,0.03]
[1739060745001,7.71011175,199.57,199.53,0.03]
[1739060745297,21.37294028,199.56,199.53,0.03]
[1739060745500,13.53733853,199.54,199.53,0.03]
[1739060746883,7.83560175,199.56,199.53,0.03]
[1739060747399,0.12549,199.55,199.53,0.03]
[1739060749212,7.71011175,199.56,199.53,0.03]
[1739060749385,12.21931175,199.59,199.53,0.03]
[1739060749589,7.71011175,199.59,199.53,0.03]
[1739060749789,7.77311175,199.6,199.53,0.03]
[1739060750612,13.53733853,199.59,199.53,0.03]
[1739060750788,13.53733853,199.59,199.53,5.0417]
[1739060750990,13.60033853,199.59,199.53,5.0417]
[1739060751298,0.063,199.59,199.53,231.53181175]
[1739060751708,7.71011175,199.58,199.53,223.8217]
[1739060753110,0.12549,199.55,199.53,0.03]
[1739060753315,7.83560175,199.54,199.53,0.03]
[1739060754615,12.07108059,199.55,199.53,0.03]
[1739060754917,0.063,199.59,199.53,0.03]
[1739060755216,0.063,199.59,199.53,218.81]
[1739060755417,0.18849,199.59,199.53,218.81]
[1739060755715,0.063,199.59,199.54,12.07108059]
[1739060756416,0.063,199.59,199.53,235.89268059]
[1739060757216,12.25957059,199.59,199.53,223.8216]
[1739060757418,12.07108059,199.58,199.53,223.8216]
[1739060759117,12.25957059,199.59,199.53,223.8216]
[1739060759499,0.18849,199.59,199.53,235.89268059]
[1739060760815,12.25957059,199.59,199.53,223.8216]
[1739060761017,16.76887059,199.59,199.53,218.81]
[1739060761216,12.19657059,199.56,199.53,218.81]
[1739060761519,12.07108059,199.56,199.53,218.81]
[1739060762416,12.19657059,199.54,199.53,0.03]
[1739060763722,16.70687059,199.54,199.53,0.03]
[1739060764922,30.24420912,199.54,199.53,0.03]
[1739060767516,16.58118059,199.56,199.53,0.03]
[1739060767717,16.58078059,199.57,199.53,0.03]
[1739060767914,0.12549,199.56,199.53,0.03]
[1739060769334,12.07108059,199.57,199.53,0.03]
[1739060769623,0.12549,199.57,199.53,0.03]
[1739060769824,12.07108059,199.58,199.53,0.03]
[1739060770199,20.0,199.57,199.53,0.03]
[1739060771204,32.07108059,199.57,199.53,0.03]
[1739060771532,0.12549,199.56,199.53,0.03]
[1739060771900,12.19657059,199.56,199.53,0.03]
[1739060773236,0.12549,199.56,199.53,0.03]
[1739060773705,16.70657059,199.56,199.53,0.03]
[1739060774432,4.63549,199.56,199.53,0.03]
[1739060778140,12.07108059,199.58,199.53,0.03]
[1739060778305,12.07108059,199.57,199.53,0.03]
[1739060778508,12.07108059,199.55,199.53,0.03]
[1739060778705,12.07108059,199.54,199.53,0.03]
[1739060784444,12.19657059,199.54,199.53,0.03]
[1739060784637,16.70687059,199.54,199.53,0.03]
[1739060786739,12.36407564,199.54,199.53,0.03]
[1739060787545,33.52911417,199.54,199.53,0.03]
[1739060787733,20.25098,199.5,199.49,0.03]
[1739060787919,41.39111417,199.5,199.49,0.03]
[1739060788441,102.30425673,199.5,199.49,0.03]
[1739060788638,20.25098,199.46,199.45,0.03]
[1739060788837,41.39111417,199.46,199.45,0.03]
[1739060789748,45.90321417,199.46,199.45,0.03]
[1739060790321,53.53091417,199.46,199.45,0.03]
[1739060790539,0.12549,199.41,199.39,0.03]
[1739060790838,12.08931834,199.4,199.39,0.03]
[1739060791821,12.21480834,199.41,199.39,0.03]
[1739060793650,20.0,199.42,199.39,0.03]
[1739060794145,12.08931834,199.45,199.39,0.03]
[1739060794332,12.08931834,199.45,199.39,218.81]
[1739060794925,12.08931834,199.43,199.39,218.81]
[1739060795128,12.08931834,199.41,199.39,218.81]
[1739060795333,12.21480834,199.4,199.39,83.01]
[1739060795548,12.21480834,199.4,199.39,0.03]
[1739060796150,12.08931834,199.4,199.39,0.03]
[1739060796355,12.08931834,199.41,199.39,0.03]
[1739060796538,0.12549,199.43,199.39,0.03]
[1739060796539,20.0,199.4,199.39,0.03]
[1739060797149,12.08931834,199.42,199.39,0.03]
[1739060797451,4.5126,199.44,199.39,0.03]
[1739060797452,12.08931834,199.44,199.39,0.03]
[1739060797950,12.15231834,199.45,199.39,0.03]
[1739060798151,12.15231834,199.45,199.39,218.81]
[1739060798332,12.15231834,199.45,199.39,223.825]
[1739060799246,0.063,199.45,199.39,235.91431834]
[1739060799454,20.063,199.45,199.41,12.08931834]
[1739060799752,20.063,199.45,199.41,147.88931834]
[1739060800129,0.063,199.45,199.41,135.8]
[1739060800752,0.063,199.45,199.41,140.8146]
[1739060801451,0.063,199.45,199.41,152.90391834]
[1739060801452,20.063,199.45,199.41,152.90391834]
[1739060801746,0.063,199.45,199.44,12.08931834]
[1739060802047,0.063,199.45,199.44,147.88931834]
[1739060803538,0.063,199.45,199.44,152.90331834]
[1739060807949,0.063,199.45,199.44,135.8]
[1739060808544,0.063,199.45,199.41,223.7947]
[1739060809152,0.063,199.45,199.42,12.08931834]
[1739060809765,0.063,199.45,199.43,5.0142]
[1739060809940,0.063,199.45,199.44,0.03]
[1739060810650,27.92145312,199.45,199.44,0.03]
[1739060811368,41.45879165,199.45,199.44,0.03]
[1739060812062,45.97119165,199.45,199.44,0.03]
[1739060812763,50.32319861,199.45,199.44,0.03]
[1739060813671,0.063,199.45,199.44,0.03]
[1739060813867,20.063,199.45,199.44,0.03]
[1739060816473,45.81079861,199.45,199.44,0.03]
[1739060816647,50.32319861,199.45,199.44,0.03]
[1739060819467,36.91135008,199.45,199.44,0.03]
[1739060821469,50.32319861,199.45,199.44,0.03]
[1739060823568,0.25098,199.4,199.39,0.03]
[1739060823751,25.74779861,199.4,199.39,0.03]
[1739060824071,67.83276869,199.4,199.39,0.03]
[1739060824267,67.83276869,199.4,199.39,0.0001]
[1739060825059,73.34626869,199.4,199.39,0.0001]
[1739060827173,73.34626869,199.4,199.38,0.0001]
[1739060827174,27.74779861,199.39,199.38,0.0001]
[1739060827376,50.25098,199.36,199.35,0.0001]
[1739060827671,84.79659861,199.36,199.35,0.0001]
[1739060828578,89.31099861,199.36,199.35,0.0001]
[1739060828975,30.0,199.34,199.33,0.03]
[1739060829158,30.0,199.34,199.33,0.0001]
[1739060829159,57.74779861,199.34,199.33,0.0001]
[1739060829359,20.0,199.27,199.24,0.03]
[1739060829559,25.74779861,199.26,199.24,0.03]
[1739060830663,30.26459861,199.26,199.24,0.03]
[1739060832258,18.17962853,199.26,199.24,0.03]
[1739060832779,32.08497008,199.27,199.24,0.03]
[1739060832978,12.08497008,199.32,199.24,12.11497008]
[1739060833369,20.0,199.29,199.24,12.11497008]
[1739060833682,20.0,199.28,199.24,12.11497008]
[1739060833990,4.5148,199.34,199.27,12.08497008]
[1739060834158,4.5148,199.34,199.27,230.86497008]